bitfinex/quotes_SOLUSD_20241127
["timestamp","ask_amount","ask_price","bid_price","bid_amount"]
[1732719271854,20.14424915,239.2,239.15,4.1813]
[1732719272529,20.14424915,239.2,239.13,11.5641]
[1732719272925,20.14424915,239.2,239.12,38.83184915]
[1732719272926,0.8336,239.19,239.12,18.6876]
[1732719273131,20.14424915,239.2,239.12,22.8695]
[1732719273837,20.14424915,239.22,239.12,43.01374915]
[1732719274046,0.8336,239.21,239.12,43.01374915]
[1732719274756,20.97784915,239.26,239.16,20.14424915]
[1732719274958,20.14424915,239.26,239.16,20.14424915]
[1732719275252,20.14424915,239.3,239.2,20.14424915]
[1732719275640,20.14424915,239.28,239.2,20.14424915]
[1732719276044,20.14424915,239.3,239.2,20.14424915]
[1732719276229,0.8336,239.29,239.2,20.14424915]
[1732719276425,20.14424915,239.28,239.2,20.14424915]
[1732719276637,20.14424915,239.28,239.21,4.1804]
[1732719276836,20.14424915,239.26,239.16,20.14424915]
[1732719277455,20.14424915,239.26,239.18,20.14424915]
[1732719277837,22.65194915,239.26,239.18,4.1808]
[1732719278042,20.14424915,239.26,239.18,4.1808]
[1732719278254,22.65184915,239.28,239.18,4.1808]
[1732719278957,20.14424915,239.26,239.18,4.1808]
[1732719279134,22.65184915,239.28,239.19,20.14424915]
[1732719279535,20.14424915,239.28,239.2,7.9035]
[1732719279736,20.14424915,239.3,239.21,20.14424915]
[1732719280762,20.14424915,239.3,239.22,4.1802]
[1732719281135,20.14424915,239.27,239.21,4.1803]
[1732719281344,20.14424915,239.27,239.19,4.1807]
[1732719281552,20.14424915,239.25,239.19,4.1807]
[1732719281943,20.97784915,239.29,239.2,20.14424915]
[1732719282142,20.14424915,239.29,239.2,20.14424915]
[1732719282865,20.14424915,239.29,239.21,4.1804]
[1732719284366,12.58900109,239.28,239.21,4.1804]
[1732719284736,12.58900109,239.28,239.2,4.1805]
[1732719284965,12.58900109,239.28,239.19,16.76970109]
[1732719285846,15.09650109,239.28,239.19,16.76970109]
[1732719286569,12.58900109,239.28,239.19,16.76970109]
[1732719288360,12.58900109,239.32,239.25,12.58900109]
[1732719289267,12.58900109,239.32,239.26,4.1795]
[1732719291748,12.58900109,239.32,239.24,4.1797]
[1732719292680,12.58900109,239.34,239.25,12.58900109]
[1732719292857,0.8336,239.33,239.25,12.58900109]
[1732719293169,12.58900109,239.32,239.24,4.1797]
[1732719295953,12.58900109,239.3,239.23,35.99570109]
[1732719296265,12.58900109,239.3,239.23,23.4067]
[1732719296451,15.09610109,239.32,239.23,35.99570109]
[1732719296654,12.58900109,239.3,239.23,23.4067]
[1732719297181,12.58900109,239.32,239.23,35.99570109]
[1732719297365,12.58900109,239.3,239.23,23.4067]
[1732719297566,12.58900109,239.32,239.23,35.99570109]
[1732719298167,0.8336,239.31,239.23,35.99570109]
[1732719298563,12.58900109,239.3,239.23,19.2267]
[1732719298765,0.8336,239.29,239.23,19.2267]
[1732719299491,12.58900109,239.3,239.24,4.1799]
[1732719299781,13.42260109,239.32,239.24,4.1799]
[1732719300360,12.58900109,239.34,239.25,12.58900109]
[1732719300663,13.42260109,239.38,239.29,12.58900109]
[1732719301074,12.58900109,239.36,239.24,22.0934]
[1732719301260,0.8336,239.35,239.27,12.58900109]
[1732719302362,0.8336,239.35,239.28,4.1792]
[1732719302784,12.58900109,239.34,239.25,4.1795]
[1732719302983,12.58900109,239.29,239.23,19.2267]
[1732719303284,12.58900109,239.27,239.19,7.2255]
[1732719303461,12.58900109,239.25,239.17,23.3692]
[1732719303660,12.58900109,239.23,239.17,19.1883]
[1732719303862,0.8336,239.22,239.17,19.1883]
[1732719305003,13.42260109,239.28,239.19,12.58900109]
[1732719305208,12.58900109,239.26,239.17,35.95840109]
[1732719305400,0.8336,239.25,239.17,35.95840109]
[1732719306411,12.58900109,239.24,239.17,19.1883]
[1732719306615,3.3416,239.23,239.17,19.1883]
[1732719307192,12.58900109,239.22,239.13,24.49010109]
[1732719307495,0.8336,239.21,239.13,24.49010109]
[1732719308206,2.5079,239.25,239.17,12.58900109]
[1732719308411,0.8336,239.24,239.17,12.58900109]
[1732719308612,0.8336,239.25,239.18,4.1809]
[1732719308991,0.8336,239.25,239.19,12.58900109]
[1732719309191,12.58900109,239.28,239.19,12.58900109]
[1732719309495,12.58900109,239.26,239.18,4.1809]
[1732719309715,0.8336,239.25,239.19,12.58900109]
[1732719309910,12.58900109,239.26,239.17,16.77000109]
[1732719310092,0.8336,239.25,239.17,16.77000109]
[1732719310294,12.58900109,239.24,239.15,12.58900109]
[1732719310497,15.09710109,239.22,239.14,4.1816]
[1732719310811,0.8336,239.21,239.13,24.49020109]
[1732719311011,0.8336,239.21,239.13,7.7195]
[1732719311216,12.58900109,239.2,239.11,31.56800109]
[1732719311416,0.8336,239.19,239.11,35.75010109]
[1732719311719,3.3417,239.22,239.15,12.58900109]
[1732719313526,0.8336,239.22,239.11,18.979]
[1732719313704,0.8336,239.25,239.17,12.58900109]
[1732719313892,2.5077,239.26,239.19,12.58900109]
[1732719314228,15.09630109,239.3,239.21,12.58900109]
[1732719314397,0.8336,239.29,239.21,12.58900109]
[1732719314724,0.8336,239.29,239.22,4.1802]
[1732719315016,15.09610109,239.32,239.23,12.58900109]
[1732719315199,0.8336,239.31,239.23,12.58900109]
[1732719315400,0.8336,239.31,239.22,4.1802]
[1732719315798,2.5073,239.3,239.22,4.1802]
[1732719315992,0.8336,239.29,239.21,12.58900109]
[1732719316192,12.58900109,239.28,239.19,20.51870109]
[1732719316421,0.8336,239.27,239.21,12.58900109]
[1732719316725,12.58900109,239.28,239.19,24.69930109]
[1732719316900,0.8336,239.27,239.19,24.69930109]
[1732719317098,0.8336,239.27,239.19,12.58900109]
[1732719317318,12.58900109,239.26,239.18,4.1807]
[1732719317507,0.8336,239.25,239.18,4.1807]
[1732719317905,0.8336,239.25,239.17,12.58900109]
[1732719317906,3.3414,239.25,239.17,12.58900109]
[1732719318109,3.3414,239.25,239.17,16.77000109]
[1732719319002,0.8336,239.25,239.19,12.58900109]
[1732719319204,0.8336,239.26,239.19,12.58900109]
[1732719319826,13.42260109,239.26,239.17,12.58900109]
[1732719320027,13.42260109,239.26,239.15,4.1814]
[1732719320522,12.58900109,239.24,239.15,4.1814]
[1732719320719,0.8336,239.23,239.14,24.16780109]
[1732719321207,2.5081,239.22,239.14,24.16780109]
[1732719321417,0.8336,239.22,239.16,12.58900109]
[1732719321811,3.3416,239.23,239.16,12.58900109]
[1732719323051,2.508,239.23,239.16,12.58900109]
[1732719323226,0.8336,239.22,239.16,12.58900109]
[1732719323902,3.3417,239.22,239.16,12.58900109]
[1732719324601,3.3417,239.22,239.15,4.1813]
[1732719324920,0.8336,239.22,239.16,12.58900109]
[1732719325117,0.8336,239.25,239.18,12.58900109]
[1732719325517,2.5077,239.26,239.2,12.58900109]
[1732719325896,0.8336,239.25,239.18,12.58900109]
[1732719326302,3.3414,239.25,239.18,16.76980109]
[1732719326502,0.8336,239.25,239.18,16.76980109]
[1732719326801,2.5068,239.34,239.24,12.58900109]
[1732719327012,0.8336,239.34,239.27,12.58900109]
[1732719327402,13.42260109,239.34,239.25,12.58900109]
[1732719327603,13.42260109,239.34,239.23,12.58900109]
[1732719327604,12.58900109,239.32,239.23,12.58900109]
[1732719327820,12.58900109,239.3,239.22,18.6566]
[1732719328023,0.8336,239.29,239.21,12.58900109]
[1732719328327,2.5076,239.27,239.19,12.58900109]
[1732719328518,0.8336,239.26,239.19,12.58900109]
[1732719329224,13.42260109,239.26,239.17,35.86580109]
[1732719330554,2.5078,239.25,239.17,35.86580109]
[1732719330719,0.8336,239.24,239.17,35.86580109]
[1732719331031,0.8336,239.25,239.19,12.58900109]
[1732719331207,0.8336,239.27,239.19,12.58900109]
[1732719331522,0.8336,239.27,239.22,12.58900109]
[1732719331721,0.8336,239.3,239.22,12.58900109]
[1732719332118,0.8336,239.3,239.24,12.58900109]
[1732719332299,3.3409,239.3,239.22,12.58900109]
[1732719333528,12.58900109,239.29,239.2,12.58900109]
[1732719333717,0.8336,239.28,239.18,12.58900109]
[1732719334529,0.8336,239.28,239.2,12.58900109]
[1732719334931,12.58900109,239.27,239.18,12.58900109]
[1732719335102,0.8336,239.26,239.18,12.58900109]
[1732719335518,12.58900109,239.27,239.18,12.58900109]
[1732719335812,0.8336,239.26,239.2,12.58900109]
[1732719336704,0.8336,239.28,239.2,12.58900109]
[1732719337130,2.5076,239.27,239.2,12.58900109]
[1732719337333,0.8336,239.26,239.2,12.58900109]
[1732719338316,2.5075,239.28,239.2,12.58900109]
[1732719338317,0.8336,239.27,239.2,12.58900109]
[1732719338519,0.8336,239.27,239.18,16.76990109]
[1732719338925,0.8336,239.27,239.2,12.58900109]
[1732719339710,3.3412,239.27,239.18,12.58900109]
[1732719340630,15.93020109,239.27,239.18,12.58900109]
[1732719341932,15.93020109,239.27,239.16,16.77010109]
[1732719342932,13.42260109,239.27,239.16,16.77010109]
[1732719343812,12.58900109,239.25,239.16,16.77010109]
[1732719344135,0.8336,239.24,239.16,12.58900109]
[1732719344519,0.8336,239.24,239.14,12.58900109]
[1732719344725,12.58900109,239.23,239.14,16.77060109]
[1732719344931,0.8336,239.22,239.16,12.58900109]
[1732719345434,0.8336,239.24,239.18,12.58900109]
[1732719345814,0.8336,239.24,239.16,12.58900109]
[1732719346030,12.58900109,239.23,239.12,22.4555]
[1732719346232,0.8336,239.22,239.12,35.04450109]
[1732719346449,8.89523396,239.22,239.13,8.06163396]
[1732719347239,11.40343396,239.22,239.13,8.06163396]
[1732719348042,8.89523396,239.22,239.13,8.06163396]
[1732719348334,13.43030852,239.22,239.13,12.59670852]
[1732719349024,12.59670852,239.2,239.1,16.77890852]
[1732719349235,0.8336,239.19,239.1,16.77890852]
[1732719349921,0.8336,239.19,239.12,12.59670852]
[1732719351835,0.8336,239.19,239.08,4.1827]
[1732719352139,0.8336,239.19,239.11,12.59670852]
[1732719352838,0.8336,239.19,239.13,12.59670852]
[1732719353016,0.8336,239.21,239.17,12.59670852]
[1732719353219,0.8336,239.3,239.19,12.59670852]
[1732719353417,0.8336,239.3,239.25,12.59670852]
[1732719353626,0.8336,239.3,239.27,12.59670852]
[1732719353821,0.8336,239.35,239.29,12.59670852]
[1732719354014,0.8336,239.36,239.32,12.59670852]
[1732719354214,12.59670852,239.4,239.32,12.59670852]
[1732719354418,12.59670852,239.36,239.28,12.59670852]
[1732719354638,0.8336,239.35,239.28,12.59670852]
[1732719354846,0.8336,239.35,239.26,12.59670852]
[1732719355244,12.59670852,239.34,239.24,12.59670852]
[1732719355420,0.8336,239.33,239.26,12.59670852]
[1732719355621,12.59670852,239.32,239.24,12.59670852]
[1732719355821,0.8336,239.31,239.24,12.59670852]
[1732719356722,0.8336,239.31,239.22,12.59670852]
[1732719357049,0.8336,239.31,239.24,12.59670852]
[1732719358938,0.8336,239.31,239.22,12.59670852]
[1732719359145,0.8336,239.31,239.24,12.59670852]
[1732719359326,13.43030852,239.33,239.24,12.59670852]
[1732719360045,15.93730852,239.33,239.24,12.59670852]
[1732719360426,12.59670852,239.31,239.22,12.59670852]
[1732719360651,12.59670852,239.31,239.18,17.8957]
[1732719360652,12.59670852,239.29,239.2,12.59670852]
[1732719360855,0.8336,239.28,239.2,12.59670852]
[1732719361038,0.8336,239.28,239.22,12.59670852]
[1732719361551,0.8336,239.3,239.22,12.59670852]
[1732719362943,0.8336,239.3,239.21,4.1803]
[1732719363660,12.59670852,239.29,239.21,4.1803]
[1732719363944,0.8336,239.28,239.21,4.1803]
[1732719364137,0.8336,239.28,239.2,12.59670852]
[1732719364447,0.8336,239.28,239.2,16.77720852]
[1732719364627,0.8336,239.3,239.22,12.59670852]
[1732719365430,12.59670852,239.29,239.2,16.77720852]
[1732719365630,0.8336,239.28,239.2,4.1805]
[1732719366248,12.59670852,239.25,239.18,4.1807]
[1732719366426,12.59670852,239.23,239.14,12.59670852]
[1732719366749,0.8336,239.22,239.14,16.77820852]
[1732719366951,12.59670852,239.21,239.12,12.59670852]
[1732719367255,0.8336,239.2,239.12,12.59670852]
[1732719367454,0.8336,239.2,239.14,12.59670852]
[1732719367633,0.8336,239.22,239.14,12.59670852]
[1732719368029,0.8336,239.24,239.16,12.59670852]
[1732719368658,0.8336,239.24,239.18,12.59670852]
[1732719368838,0.8336,239.26,239.18,12.59670852]
[1732719369727,12.59670852,239.25,239.14,12.59670852]
[1732719369927,0.8336,239.24,239.14,12.59670852]
[1732719370354,8.89383942,239.24,239.15,8.06023942]
[1732719371031,8.89383942,239.24,239.15,12.24163942]
[1732719371337,8.89383942,239.24,239.15,8.06023942]
[1732719371635,8.89383942,239.24,239.09,4.1825]
[1732719371829,8.06023942,239.22,239.12,8.06023942]
[1732719372029,0.8336,239.21,239.12,8.06023942]
[1732719372650,0.8336,239.21,239.12,12.24213942]
[1732719373151,0.8336,239.21,239.12,8.06023942]
[1732719373752,0.8336,239.21,239.11,4.1821]
[1732719373753,0.8336,239.21,239.14,8.06023942]
[1732719374252,0.8336,239.23,239.14,8.06023942]
[1732719375247,0.8336,239.23,239.18,8.06023942]
[1732719375448,0.8336,239.26,239.18,8.06023942]
[1732719377957,8.06023942,239.25,239.16,8.06023942]
[1732719378143,8.06023942,239.23,239.11,4.1821]
[1732719378358,8.06023942,239.21,239.12,8.06023942]
[1732719378662,0.8336,239.2,239.12,8.06023942]
[1732719379050,0.8336,239.2,239.08,17.9748]
[1732719379364,8.06023942,239.17,239.08,8.06023942]
[1732719379545,0.8336,239.16,239.03,4.1835]
[1732719379750,0.8336,239.16,239.06,8.06023942]
[1732719379751,8.06023942,239.14,239.06,8.06023942]
[1732719379957,0.8336,239.13,239.06,8.06023942]
[1732719380867,0.8336,239.15,239.06,12.24323942]
[1732719381049,8.06023942,239.12,239.02,18.9285]
[1732719381358,0.8336,239.11,239.04,8.06023942]
[1732719382057,0.8336,239.13,239.04,8.06023942]
[1732719382254,0.8336,239.13,239.06,8.06023942]
[1732719382445,0.8336,239.13,239.06,12.60362302]
[1732719382852,12.60362302,239.15,239.06,12.60362302]
[1732719382853,0.8336,239.14,239.06,12.60362302]
[1732719383962,12.60362302,239.13,239.04,16.78682302]
[1732719384138,0.8336,239.12,239.04,12.60362302]
[1732719384342,12.60362302,239.11,239.02,12.60362302]
[1732719384557,0.8336,239.1,239.02,12.60362302]
[1732719388042,12.60362302,239.09,239.0,16.78772302]
[1732719388250,0.8336,239.08,239.0,16.78772302]
[1732719388547,12.60362302,239.07,238.99,0.4914643]
[1732719388757,0.8336,239.06,238.99,0.4914643]
[1732719389272,12.60362302,239.05,238.99,0.4914643]
[1732719389446,0.8336,239.04,238.99,0.4914643]
[1732719389644,0.8336,239.06,238.99,0.4914643]
[1732719391443,12.60362302,239.05,238.99,0.4914643]
[1732719391643,0.8336,239.04,238.99,0.4914643]
[1732719393268,12.60362302,239.03,238.99,0.4914643]
[1732719393463,0.8336,239.02,238.99,0.4914643]
[1732719394362,12.60362302,239.01,238.99,0.4914643]
[1732719394676,0.8336,239.0,238.99,0.4914643]
[1732719394966,12.60362302,239.05,238.99,0.4914643]
[1732719395166,1.83585899,239.09,238.99,0.4914643]
[1732719395167,0.8336,239.04,239.01,12.60362302]
[1732719395467,0.8336,239.08,239.01,12.60362302]
[1732719395861,0.8336,239.16,239.07,12.60362302]
[1732719396073,0.8336,239.16,239.09,12.60362302]
[1732719396467,0.8336,239.16,239.07,12.60362302]
[1732719396670,0.8336,239.16,239.07,16.78642302]
[1732719398573,0.8336,239.17,239.11,12.60362302]
[1732719399192,13.43722302,239.17,239.07,12.60362302]
[1732719399857,12.60362302,239.15,239.07,12.60362302]
[1732719400047,0.8336,239.14,239.07,12.60362302]
[1732719403649,0.8336,239.14,239.06,4.1829]
[1732719403854,12.60362302,239.09,238.99,0.4914643]
[1732719404175,12.60362302,239.07,239.0,12.60362302]
[1732719404469,8.07009228,239.09,239.0,8.07009228]
[1732719404688,0.8336,239.08,239.0,8.07009228]
[1732719405781,0.8336,239.08,239.02,8.07009228]
[1732719406081,0.8336,239.11,239.02,8.07009228]
[1732719406383,0.8336,239.11,239.04,12.60604682]
[1732719406556,13.43964682,239.11,239.03,4.1835]
[1732719407085,13.43964682,239.11,239.02,16.78964682]
[1732719407585,12.60604682,239.09,239.0,16.78994682]
[1732719407781,0.8336,239.08,239.0,16.78994682]
[1732719408079,0.8336,239.15,239.07,12.60604682]
[1732719408271,0.8336,239.15,239.08,4.1827]
[1732719408583,0.8336,239.15,239.09,12.60604682]
[1732719408752,0.8336,239.15,239.11,12.60604682]
[1732719408957,12.60604682,239.23,239.13,12.60604682]
[1732719409158,12.60604682,239.21,239.13,12.60604682]
[1732719409357,12.60604682,239.19,239.11,12.60604682]
[1732719409580,0.8336,239.18,239.11,12.60604682]
[1732719410271,0.8336,239.18,239.11,16.78804682]
[1732719410980,0.8336,239.2,239.11,16.78804682]
[1732719411354,13.43964682,239.23,239.15,12.60604682]
[1732719411684,12.60604682,239.27,239.17,12.60604682]
[1732719411859,0.8336,239.26,239.17,12.60604682]
[1732719412462,0.8336,239.26,239.19,12.60604682]
[1732719413376,12.60604682,239.27,239.19,12.60604682]
[1732719413581,0.8336,239.26,239.19,12.60604682]
[1732719415658,0.8336,239.26,239.17,12.60604682]
[1732719416063,12.60604682,239.23,239.15,12.60604682]
[1732719416359,0.8336,239.22,239.15,12.60604682]
[1732719417287,12.60604682,239.23,239.15,12.60604682]
[1732719417687,12.60604682,239.23,239.15,16.78744682]
[1732719419089,0.8336,239.26,239.18,12.60604682]
[1732719419260,0.8336,239.26,239.15,4.1814]
[1732719419261,0.8336,239.32,239.25,12.60604682]
[1732719419585,0.8336,239.34,239.27,12.60604682]
[1732719420866,12.60604682,239.29,239.21,12.60604682]
[1732719421071,0.8336,239.28,239.21,12.60604682]
[1732719421385,12.60604682,239.27,239.17,4.1809]
[1732719421588,0.8336,239.26,239.17,16.78694682]
[1732719421778,12.60604682,239.25,239.16,35.43644682]
[1732719421978,0.8336,239.24,239.16,31.25524682]
[1732719422387,12.60604682,239.23,239.14,16.78754682]
[1732719422694,0.8336,239.22,239.14,16.78754682]
[1732719422867,0.8336,239.22,239.16,12.60604682]
[1732719423187,0.8336,239.24,239.16,12.60604682]
[1732719423969,12.60604682,239.27,239.2,12.60604682]
[1732719424183,0.8336,239.26,239.2,12.60604682]
[1732719424387,12.60604682,239.29,239.2,12.60604682]
[1732719424588,0.8336,239.28,239.2,12.60604682]
[1732719425176,0.8336,239.28,239.2,16.78654682]
[1732719426372,13.43964682,239.31,239.22,12.60604682]
[1732719426989,13.43964682,239.31,239.24,12.60604682]
[1732719427190,16.9815,239.35,239.26,12.60604682]
[1732719427367,13.43964682,239.34,239.24,12.60604682]
[1732719427704,13.43964682,239.34,239.26,12.60604682]
[1732719427865,13.43964682,239.34,239.24,12.60604682]
[1732719428071,12.60604682,239.32,239.19,0.83371454]
[1732719428272,0.8336,239.31,239.22,12.60604682]
[1732719429081,0.8336,239.31,239.23,4.18]
[1732719429293,13.43964682,239.34,239.24,12.60604682]
[1732719429507,12.60604682,239.32,239.24,12.60604682]
[1732719429793,0.8336,239.31,239.22,16.78624682]
[1732719430775,0.8336,239.31,239.24,12.60604682]
[1732719432692,0.8336,239.31,239.22,16.78614682]
[1732719434193,0.8336,239.31,239.24,12.60604682]
[1732719434389,0.8336,239.31,239.22,16.78614682]
[1732719435502,0.8336,239.31,239.24,12.60604682]
[1732719436494,0.8336,239.31,239.22,16.78614682]
[1732719436698,12.60604682,239.28,239.16,4.1813]
[1732719436881,0.8336,239.27,239.18,12.60604682]
[1732719437404,16.9815,239.35,239.24,12.60604682]
[1732719437594,16.9815,239.35,239.19,0.83388929]
[1732719437595,13.43964682,239.34,239.26,12.60604682]
[1732719437895,13.43964682,239.34,239.24,12.60604682]
[1732719438102,13.43964682,239.34,239.26,12.60604682]
[1732719438307,0.8336,239.34,239.28,12.60604682]
[1732719440084,0.8336,239.34,239.26,12.60604682]
[1732719440502,0.8336,239.34,239.27,18.6046]
[1732719440678,12.60604682,239.36,239.27,18.6046]
[1732719440878,0.8336,239.35,239.27,18.6046]
[1732719441295,0.8336,239.35,239.26,16.78554682]
[1732719441494,0.8336,239.35,239.26,12.60604682]
[1732719443686,12.60604682,239.34,239.24,12.60604682]
[1732719443895,0.8336,239.33,239.24,12.60604682]
[1732719445584,0.8336,239.33,239.24,16.78584682]
[1732719445904,12.60604682,239.36,239.28,12.60604682]
[1732719446199,13.43964682,239.39,239.3,12.60604682]
[1732719446406,0.8336,239.42,239.34,12.60604682]
[1732719446903,12.60604682,239.41,239.32,12.60604682]
[1732719447079,0.8336,239.4,239.32,12.60604682]
[1732719447485,12.60604682,239.34,239.2,10.4513]
[1732719447695,12.60604682,239.34,239.26,12.60604682]
[1732719448297,0.8336,239.33,239.26,12.60604682]
[1732719449186,0.8336,239.33,239.24,12.60604682]
[1732719449602,13.94654682,239.34,239.24,12.60604682]
[1732719449804,12.60604682,239.34,239.24,12.60604682]
[1732719450685,12.60604682,239.36,239.26,12.60604682]
[1732719451684,12.60604682,239.36,239.27,4.1793]
[1732719451994,12.60604682,239.36,239.26,12.60604682]
[1732719452197,12.60604682,239.36,239.28,12.60604682]
[1732719452416,12.60604682,239.38,239.3,12.60604682]
[1732719452582,12.60604682,239.4,239.32,12.60604682]
[1732719453495,14.4740799,239.42,239.32,12.60604682]
[1732719454097,12.60604682,239.4,239.32,12.60604682]
[1732719454492,97.87833607,239.5,239.38,12.60604682]
[1732719454727,12.60604682,239.49,239.4,12.60604682]
[1732719455004,25.11124682,239.5,239.4,12.60604682]
[1732719456314,12.60604682,239.48,239.4,12.60604682]
[1732719457396,15.11144682,239.48,239.4,12.60604682]
[1732719457599,15.11144682,239.48,239.38,12.60604682]
[1732719458584,12.60604682,239.48,239.38,12.60604682]
[1732719459004,22.60604682,239.5,239.4,12.60604682]
[1732719459896,22.60604682,239.5,239.42,12.60604682]
[1732719460103,25.11124682,239.5,239.42,12.60604682]
[1732719460910,22.60604682,239.5,239.42,12.60604682]
[1732719461508,25.11124682,239.5,239.42,12.60604682]
[1732719461712,22.60604682,239.5,239.42,12.60604682]
[1732719462017,10.0,239.5,239.42,12.60604682]
[1732719462495,10.0,239.5,239.44,12.60604682]
[1732719462891,10.0,239.5,239.42,12.60604682]
[1732719463115,22.60604682,239.5,239.42,12.60604682]
[1732719464312,10.0,239.5,239.42,12.60604682]
[1732719464621,10.0,239.5,239.44,12.60604682]
[1732719466714,10.0,239.5,239.42,16.78264682]
[1732719467597,10.0,239.5,239.44,12.60604682]
[1732719469220,10.0,239.5,239.42,12.60604682]
[1732719470215,10.0,239.5,239.42,16.78274682]
[1732719471596,22.60604682,239.5,239.42,12.60604682]
[1732719471924,22.60604682,239.5,239.4,16.78294682]
[1732719472221,22.60604682,239.5,239.4,12.60604682]
[1732719472222,25.11124682,239.5,239.4,12.60604682]
[1732719472528,18.0433071,239.5,239.41,8.0433071]
[1732719473819,10.0,239.5,239.41,4.1768]
[1732719474123,10.0,239.5,239.42,8.0433071]
[1732719475121,10.0,239.5,239.42,12.2200071]
[1732719477014,10.0,239.5,239.38,0.83316607]
[1732719477220,10.0,239.5,239.43,8.0433071]
[1732719477905,10.0,239.5,239.39,4.1772]
[1732719478127,10.0,239.5,239.42,8.0433071]
[1732719478530,10.0,239.5,239.47,8.0433071]
[1732719479209,10.0,239.5,239.47,12.2191071]
[1732719479424,10.0,239.5,239.49,8.0433071]
[1732719481114,10.0,239.5,239.49,12.2188071]
[1732719481916,10.0,239.5,239.49,4.1755]
[1732719482120,10.0,239.5,239.49,12.2188071]
[1732719482621,2.5034,239.67,239.49,88.3143]
[1732719482930,8.0433071,239.65,239.57,8.0433071]
[1732719483338,7.3075,239.7,239.59,8.0433071]
[1732719483508,8.0433071,239.69,239.59,8.0433071]
[1732719483706,8.0433071,239.67,239.54,4.1745]
[1732719483930,8.0433071,239.67,239.58,8.0433071]
[1732719484512,9.8106,239.7,239.56,8.0433071]
[1732719484712,8.0433071,239.65,239.56,8.0433071]
[1732719485430,10.5469071,239.65,239.56,8.0433071]
[1732719485933,8.0433071,239.61,239.52,8.0433071]
[1732719486829,10.5474071,239.61,239.52,8.0433071]
[1732719488319,15.06040834,239.61,239.52,12.55630834]
[1732719488720,2.5041,239.61,239.54,12.55630834]
[1732719488929,12.55630834,239.58,239.41,4.1769]
[1732719489240,12.55630834,239.58,239.48,12.55630834]
[1732719490437,12.55630834,239.58,239.5,12.55630834]
[1732719490624,15.06070834,239.58,239.5,12.55630834]
[1732719491233,15.06070834,239.58,239.48,12.55630834]
[1732719492547,2.5044,239.58,239.5,12.55630834]
[1732719492718,15.06050834,239.6,239.52,12.55630834]
[1732719493742,15.06050834,239.6,239.5,12.55630834]
[1732719494035,12.55630834,239.58,239.5,12.55630834]
[1732719494227,2.5044,239.57,239.5,12.55630834]
[1732719494831,2.5044,239.57,239.52,12.55630834]
[1732719495028,2.5041,239.6,239.52,12.55630834]
[1732719496236,12.55630834,239.59,239.5,12.55630834]
[1732719496419,2.5037,239.64,239.52,12.55630834]
[1732719496623,12.55630834,239.63,239.54,12.55630834]
[1732719496834,12.55630834,239.63,239.52,12.55630834]
[1732719497520,12.55630834,239.63,239.45,0.8328392]
[1732719497521,2.5039,239.62,239.54,12.55630834]
[1732719498231,2.5039,239.62,239.52,12.55630834]
[1732719498539,15.06010834,239.63,239.54,12.55630834]
[1732719499240,12.55630834,239.65,239.56,12.55630834]
[1732719499463,2.5035,239.66,239.58,12.55630834]
[1732719499650,15.05960834,239.68,239.58,12.55630834]
[1732719499942,12.55630834,239.66,239.56,12.55630834]
[1732719500651,15.05990834,239.66,239.56,12.55630834]
[1732719501527,15.05990834,239.66,239.56,16.73060834]
[1732719501722,15.05990834,239.66,239.56,12.55630834]
[1732719502335,12.55630834,239.64,239.54,12.55630834]
[1732719502840,2.5038,239.63,239.54,12.55630834]
[1732719503243,15.06010834,239.63,239.54,12.55630834]
[1732719503443,15.06010834,239.63,239.52,12.55630834]
[1732719503636,12.55630834,239.61,239.52,12.55630834]
[1732719504641,2.5041,239.6,239.52,12.55630834]
[1732719506340,2.5041,239.6,239.54,12.55630834]
[1732719506537,12.55630834,239.62,239.52,12.55630834]
[1732719506723,2.504,239.61,239.52,12.55630834]
[1732719508545,8.03575794,239.61,239.5,4.1753]
[1732719508730,8.03575794,239.61,239.52,8.03575794]
[1732719509130,8.03575794,239.59,239.5,8.03575794]
[1732719509949,8.03575794,239.61,239.52,8.03575794]
[1732719510535,2.5041,239.6,239.52,8.03575794]
[1732719515258,8.71434044,239.64,239.56,8.03575794]
[1732719515259,17.46115794,239.64,239.56,8.03575794]
[1732719515435,10.53945794,239.64,239.56,8.03575794]
[1732719516336,6.42710446,239.83,239.62,5.0]
[1732719516536,0.4914643,239.82,239.67,5.0]
[1732719516735,8.03575794,239.81,239.71,8.03575794]
[1732719516954,8.03575794,239.79,239.69,8.03575794]
[1732719517341,8.03575794,239.81,239.71,8.03575794]
[1732719517644,8.03575794,239.81,239.73,8.03575794]
[1732719518448,10.53775794,239.81,239.67,4.1724]